bitfinex/quotes_BTCUSD_20250718
["timestamp","ask_amount","ask_price","bid_price","bid_amount"]
[1752821506253,0.15052992,120530.0,120520.0,0.7530096]
[1752821506706,0.15052992,120530.0,120520.0,0.8835696]
[1752821507107,0.15052992,120530.0,120520.0,0.7530096]
[1752821507319,0.15052992,120530.0,120520.0,1.21426218]
[1752821507455,0.15052992,120530.0,120520.0,0.8835696]
[1752821507663,0.15056992,120530.0,120520.0,0.8835696]
[1752821507870,0.15056992,120530.0,120520.0,1.21426218]
[1752821508074,0.15056992,120530.0,120520.0,1.12850256]
[1752821508289,0.14856992,120530.0,120520.0,1.12850256]
[1752821509395,0.14856992,120530.0,120520.0,0.79780998]
[1752821511335,0.14856992,120530.0,120520.0,0.66724998]
[1752821511553,0.14856992,120530.0,120520.0,0.79768998]
[1752821511767,0.14856992,120530.0,120520.0,0.8834496]
[1752821512196,0.14856992,120530.0,120520.0,0.79768998]
[1752821520719,0.14856992,120530.0,120520.0,1.12838256]
[1752821520937,0.14856992,120530.0,120520.0,1.12834256]
[1752821521154,0.14856992,120530.0,120520.0,0.66724998]
[1752821521358,0.14856992,120530.0,120520.0,1.12834256]
[1752821521565,0.14856992,120530.0,120520.0,1.21410218]
[1752821523146,0.14856992,120530.0,120520.0,0.79764998]
[1752821523393,0.14856992,120530.0,120520.0,1.12834256]
[1752821524064,0.14856992,120530.0,120520.0,0.66724998]
[1752821524280,0.14856992,120530.0,120520.0,0.79760998]
[1752821524722,0.14856992,120530.0,120520.0,0.76796913]
[1752821524926,0.14856992,120530.0,120520.0,0.42796913]
[1752821525147,0.14856992,120530.0,120520.0,0.40981913]
[1752821525358,0.14856992,120530.0,120520.0,0.31340913]
[1752821525573,0.14856992,120530.0,120520.0,0.44372913]
[1752821526019,0.14856992,120530.0,120520.0,0.41192913]
[1752821527163,0.14856992,120530.0,120520.0,0.42822913]
[1752821527482,0.14856992,120530.0,120520.0,0.44412913]
[1752821528744,0.14856992,120530.0,120520.0,0.52988875]
[1752821528950,0.14856992,120530.0,120520.0,0.86066133]
[1752821530499,0.14856992,120530.0,120520.0,0.44420913]
[1752821530716,0.14856992,120530.0,120520.0,0.31380913]
[1752821530968,0.14856992,120530.0,120520.0,0.44420913]
[1752821531770,0.14856992,120530.0,120520.0,0.29790913]
[1752821532143,0.14856992,120530.0,120520.0,0.42822913]
[1752821532701,0.14856992,120530.0,120520.0,0.44402913]
[1752821533012,0.14856992,120530.0,120520.0,0.31370913]
[1752821533219,0.14856992,120530.0,120520.0,0.44422913]
[1752821535816,0.14856992,120530.0,120520.0,0.41212913]
[1752821536897,0.4792625,120530.0,120520.0,0.27634913]
[1752821537131,0.5059625,120530.0,120520.0,0.19083885]
[1752821537346,0.52255484,120530.0,120520.0,0.32139885]
[1752821537782,0.7632225,120530.0,120520.0,0.16594756]
[1752821537990,0.04329399,120520.0,120510.0,0.19085371]
[1752821538222,0.37398657,120520.0,120510.0,0.25976862]
[1752821538457,0.51284387,120520.0,120510.0,0.19085391]
[1752821538894,0.3739865,120520.0,120510.0,0.19915149]
[1752821539102,0.5045465,120520.0,120510.0,0.19915149]
[1752821539319,0.16555689,120520.0,120510.0,0.19915149]
[1752821539524,0.49624947,120520.0,120510.0,0.19915149]
[1752821539964,0.5045465,120520.0,120510.0,0.19915149]
[1752821540599,0.51284367,120520.0,120510.0,0.19915149]
[1752821541506,0.54823123,120520.0,120510.0,0.18255626]
[1752821541724,0.00829765,120510.0,120500.0,0.19087025]
[1752821541939,0.19083933,120520.0,120510.0,0.18255697]
[1752821542152,0.67065454,120520.0,120510.0,0.18255697]
[1752821542421,0.67065413,120520.0,120510.0,0.19085462]
[1752821542634,0.68724867,120520.0,120510.0,0.19085462]
[1752821542858,0.68724867,120520.0,120510.0,0.18255697]
[1752821543074,0.69554604,120520.0,120510.0,0.18255697]
[1752821543274,0.68724915,120520.0,120510.0,0.18255704]
[1752821543912,0.22585213,120510.0,120500.0,0.26808267]
[1752821544139,0.55654471,120510.0,120500.0,0.27638101]
[1752821544347,0.51292539,120510.0,120500.0,0.28467928]
[1752821544554,0.52122331,120510.0,120500.0,0.28467928]
[1752821544788,0.67888727,120510.0,120500.0,0.17427385]
[1752821545030,0.67888727,120510.0,120490.0,0.16597669]
[1752821545031,0.05989369,120500.0,120490.0,0.16597669]
[1752821545251,0.69554005,120500.0,120490.0,0.19087418]
[1752821545464,0.69554005,120500.0,120490.0,0.19917314]
[1752821545670,0.68724226,120500.0,120490.0,0.18257522]
[1752821545887,0.55656226,120500.0,120490.0,0.19087431]
[1752821546105,0.68724226,120500.0,120490.0,0.19917334]
[1752821546325,0.68724226,120500.0,120490.0,0.19087431]
[1752821546531,0.67894351,120500.0,120490.0,0.19917334]
[1752821546958,0.68723203,120500.0,120490.0,0.19917334]
[1752821547406,0.68723203,120500.0,120490.0,0.19087431]
[1752821547616,0.47788905,120500.0,120490.0,0.19917327]
[1752821547837,0.49448607,120500.0,120490.0,0.19917327]
[1752821548052,0.50278475,120500.0,120490.0,0.19917327]
[1752821548266,0.66876047,120500.0,120490.0,0.19087431]
[1752821548492,0.52986213,120500.0,120490.0,0.18257536]
[1752821548714,0.66050213,120500.0,120490.0,0.19917375]
[1752821548928,0.65220372,120500.0,120490.0,0.19917375]
[1752821549826,0.63560643,120500.0,120490.0,0.18257536]
[1752821550091,0.02489708,120490.0,120480.0,0.19409856]
[1752821550293,0.01659785,120490.0,120480.0,0.29490884]
[1752821550501,0.01659785,120490.0,120480.0,0.44162884]
[1752821550720,0.02489694,120490.0,120480.0,0.44162884]
[1752821550939,0.33816434,120490.0,120480.0,0.44178884]
[1752821551162,0.1721754,120490.0,120480.0,0.44178884]
[1752821551370,0.33816475,120490.0,120480.0,0.43398889]
[1752821551582,0.15557721,120490.0,120480.0,0.45058825]
[1752821551803,0.33816475,120490.0,120480.0,0.45058825]
[1752821552030,0.33816523,120490.0,120480.0,0.43398889]
[1752821552250,0.32986614,120490.0,120480.0,0.43398889]
[1752821552672,0.32986614,120490.0,120480.0,0.4422886]
[1752821553096,0.14727812,120490.0,120480.0,0.4422886]
[1752821553306,0.15557742,120490.0,120480.0,0.45058825]
[1752821553515,0.32986566,120490.0,120480.0,0.4422886]
[1752821553946,0.3381651,120490.0,120480.0,0.43398889]
[1752821554165,0.32986614,120490.0,120480.0,0.42568911]
[1752821554377,0.32986614,120490.0,120480.0,0.43398896]
[1752821554796,0.14727812,120490.0,120480.0,0.44228861]
[1752821555424,0.15557749,120490.0,120480.0,0.44228861]
[1752821555637,0.15557749,120490.0,120480.0,0.0004997]
[1752821555639,0.51327998,120490.0,120480.0,0.0004997]
[1752821555864,0.53997998,120490.0,120480.0,0.0004997]
[1752821556332,0.67061998,120490.0,120480.0,0.0004997]
[1752821557804,0.53997998,120490.0,120480.0,0.0004997]
[1752821557808,0.67057998,120490.0,120480.0,0.0004997]
[1752821558038,0.62645204,120490.0,120480.0,0.0004997]
[1752821558270,0.75705204,120490.0,120480.0,0.0004997]
[1752821558649,0.75505204,120490.0,120480.0,0.0004997]
[1752821558863,0.75905204,120490.0,120480.0,0.0004997]
[1752821559027,0.62645204,120490.0,120480.0,0.0004997]
[1752821559228,0.75701204,120490.0,120480.0,0.0004997]
[1752821559470,0.75901204,120490.0,120480.0,0.0004997]
[1752821559834,0.62845204,120490.0,120480.0,0.0004997]
[1752821560046,0.67449998,120490.0,120480.0,0.0004997]
[1752821561207,0.67445998,120490.0,120480.0,0.0004997]
[1752821561420,0.54397998,120490.0,120480.0,0.0004997]
[1752821561628,0.67445998,120490.0,120480.0,0.0013997]
[1752821562049,0.75932004,120490.0,120480.0,0.0013997]
[1752821563431,0.42862746,120490.0,120480.0,0.0013997]
[1752821563828,0.75932004,120490.0,120480.0,0.0013997]
[1752821564970,0.004,120490.0,120480.0,0.23018211]
[1752821565242,0.14313896,120490.0,120480.0,0.32399204]
[1752821565455,0.004,120490.0,120480.0,0.32399204]
[1752821565662,0.01229896,120490.0,120480.0,0.32399204]
[1752821565878,0.00829896,120490.0,120480.0,0.32399204]
[1752821566097,0.02689715,120490.0,120480.0,0.45487204]
[1752821566540,0.01859799,120490.0,120480.0,0.45487204]
[1752821566980,0.002,120490.0,120480.0,0.45487204]
[1752821567196,0.01029889,120490.0,120480.0,0.45487204]
[1752821567409,0.004,120490.0,120480.0,0.45487204]
[1752821567649,0.01229882,120490.0,120480.0,0.45487204]
[1752821568092,0.004,120490.0,120480.0,0.45487204]
[1752821568312,0.01229889,120490.0,120480.0,0.45487204]
[1752821569202,0.02059798,120490.0,120480.0,0.45487204]
[1752821570102,0.02059792,120490.0,120480.0,0.45487204]
[1752821570321,0.01229889,120490.0,120480.0,0.45487204]
[1752821570535,0.02059792,120490.0,120480.0,0.45487204]
[1752821570683,0.02889708,120490.0,120480.0,0.45487204]
[1752821570895,0.02059792,120490.0,120480.0,0.45487204]
[1752821571324,0.01229889,120490.0,120480.0,0.45487204]
[1752821571550,0.02059792,120490.0,120480.0,0.45487204]
[1752821571706,0.01229889,120490.0,120480.0,0.45487204]
[1752821572266,0.01229889,120490.0,120480.0,0.32399204]
[1752821572409,0.004,120490.0,120480.0,0.45467204]
[1752821572620,0.01229889,120490.0,120480.0,0.45467204]
[1752821572857,0.02059798,120490.0,120480.0,0.45467204]
[1752821573058,0.01229889,120490.0,120480.0,0.45467204]
[1752821574269,0.02059792,120490.0,120480.0,0.45467204]
[1752821574472,0.02889701,120490.0,120480.0,0.45467204]
[1752821574859,0.02059792,120490.0,120480.0,0.45467204]
[1752821575477,0.02059798,120490.0,120480.0,0.45467204]
[1752821575900,0.02059798,120490.0,120480.0,0.45455204]
[1752821576105,0.02889714,120490.0,120480.0,0.45455204]
[1752821576507,0.02059798,120490.0,120480.0,0.45455204]
[1752821579001,0.03719658,120490.0,120480.0,0.44625239]
[1752821579217,0.35958979,120490.0,120480.0,0.45455204]
[1752821579847,0.36788909,120490.0,120480.0,0.45455204]
[1752821580273,0.03719651,120490.0,120480.0,0.45455204]
[1752821580714,0.20318538,120490.0,120480.0,0.45455204]
[1752821580926,0.21148475,120490.0,120480.0,0.45455204]
[1752821581134,0.03719651,120490.0,120480.0,0.45455204]
[1752821583310,0.04549588,120490.0,120480.0,0.45455204]
[1752821583512,0.21148475,120490.0,120480.0,0.45455204]
[1752821583723,0.54217788,120490.0,120480.0,0.45455204]
[1752821583930,0.53387844,120490.0,120480.0,0.45455204]
[1752821584113,0.36788957,120490.0,120480.0,0.45455204]
[1752821584355,0.53387844,120490.0,120480.0,0.45455204]
[1752821584490,0.36788957,120490.0,120480.0,0.45455204]
[1752821585055,0.3595902,120490.0,120480.0,0.45455204]
[1752821586202,0.3512909,120490.0,120480.0,0.45455204]
[1752821586458,0.02889762,120490.0,120480.0,0.45455204]
[1752821586990,0.20318586,120490.0,120480.0,0.45455204]
[1752821587207,0.20318586,120490.0,120480.0,0.44625239]
[1752821587415,0.20318586,120490.0,120480.0,0.43795268]
[1752821587615,0.19488677,120490.0,120480.0,0.44625253]
[1752821587792,0.18658754,120490.0,120480.0,0.43751282]
[1752821587996,0.18658754,120490.0,120480.0,0.44581281]
[1752821588468,0.50898082,120490.0,120480.0,0.0392797]
[1752821588673,0.50898082,120490.0,120480.0,0.1346197]
[1752821588878,0.50898082,120490.0,120480.0,0.1346597]
[1752821589003,0.50898082,120490.0,120480.0,0.1346197]
[1752821589212,0.50898082,120490.0,120480.0,0.20282254]
[1752821589413,0.50898082,120490.0,120480.0,0.22106254]
[1752821589692,0.50898082,120490.0,120480.0,0.35106254]
[1752821590104,0.17828824,120490.0,120480.0,0.35106254]
[1752821590320,0.50898082,120490.0,120480.0,0.35350254]
[1752821590752,0.50898082,120490.0,120480.0,0.1708997]
[1752821590965,0.50898082,120490.0,120480.0,0.3535024]
[1752821591612,0.50898082,120490.0,120480.0,0.36180225]
[1752821591786,0.50898082,120490.0,120480.0,0.34520248]
[1752821592007,0.50898082,120490.0,120480.0,0.36180253]
[1752821592878,0.50898082,120490.0,120480.0,0.37010245]
[1752821593105,0.51727998,120490.0,120480.0,0.37010245]
[1752821593323,0.51727998,120490.0,120480.0,0.37010217]
[1752821594211,0.51727998,120490.0,120480.0,0.24010217]
[1752821594360,0.51727998,120490.0,120480.0,0.37824195]
[1752821594766,0.51727998,120490.0,120480.0,0.36994217]
[1752821595124,0.55036576,120490.0,120480.0,0.0038397]
[1752821595337,0.68016576,120490.0,120480.0,0.0038397]
[1752821595792,0.55036576,120490.0,120480.0,0.0038397]
[1752821596041,0.55036576,120490.0,120480.0,0.23128211]
[1752821596042,0.55866492,120490.0,120480.0,0.23128211]
[1752821596307,0.01229896,120490.0,120480.0,0.23958176]
[1752821596512,0.02059805,120490.0,120480.0,0.36946176]
[1752821596737,0.02889721,120490.0,120480.0,0.36946176]
[1752821596965,0.02889735,120490.0,120480.0,0.36946176]
[1752821597613,0.02889735,120490.0,120480.0,0.23128211]
[1752821597614,0.19488622,120490.0,120480.0,0.23128211]
[1752821597857,0.20318559,120490.0,120480.0,0.3529024]
[1752821598123,0.21148503,120490.0,120480.0,0.36950203]
[1752821598314,0.20318607,120490.0,120480.0,0.36950203]
[1752821598524,0.19488698,120490.0,120480.0,0.36120225]
[1752821598738,0.18658768,120490.0,120480.0,0.3529024]
[1752821598950,0.50892993,120490.0,120480.0,0.04867983]
[1752821599169,0.50063049,120490.0,120480.0,0.0403797]
[1752821599404,0.50063049,120490.0,120480.0,0.04867983]
[1752821599405,0.16998887,120490.0,120480.0,0.04867983]
[1752821599626,0.16998887,120490.0,120480.0,0.36112253]
[1752821599627,0.63047049,120490.0,120480.0,0.36112253]
[1752821600525,0.16998887,120490.0,120480.0,0.23958238]
[1752821600771,0.16998887,120490.0,120480.0,0.36946238]
[1752821600989,0.16998887,120490.0,120480.0,0.23958238]
[1752821601228,0.30816817,120490.0,120480.0,0.36946238]
[1752821601470,0.30816817,120490.0,120480.0,0.37776216]
[1752821601471,0.17828817,120490.0,120480.0,0.37776216]
[1752821601709,0.1948867,120490.0,120480.0,0.36946238]
[1752821601939,0.1948867,120490.0,120480.0,0.37776209]
[1752821602422,0.1948867,120490.0,120480.0,0.36946238]
[1752821603094,0.1948867,120490.0,120480.0,0.37776174]
[1752821603948,0.02889783,120490.0,120480.0,0.37776133]
[1752821604166,0.02059839,120490.0,120480.0,0.24788133]
[1752821604401,0.15865721,120490.0,120480.0,0.37764133]
[1752821605292,0.16695651,120490.0,120480.0,0.37764133]
[1752821606168,0.03719651,120490.0,120480.0,0.37764133]
[1752821607477,0.02889721,120490.0,120480.0,0.37764133]
[1752821607687,0.03719651,120490.0,120480.0,0.37764133]
[1752821607912,0.02889721,120490.0,120480.0,0.37764133]
[1752821608143,0.02889714,120490.0,120480.0,0.37764133]
[1752821608805,0.02059798,120490.0,120480.0,0.37764133]
[1752821609007,0.02889721,120490.0,120480.0,0.37764133]
[1752821609447,0.03719651,120490.0,120480.0,0.37764133]
[1752821610299,0.02889721,120490.0,120480.0,0.37764133]
[1752821610510,0.03719651,120490.0,120480.0,0.37764133]
[1752821610731,0.03719651,120490.0,120480.0,0.24788133]
[1752821610953,0.20318586,120490.0,120480.0,0.35250219]
[1752821611837,0.20318586,120490.0,120480.0,0.36080197]
[1752821612076,0.20318586,120490.0,120480.0,0.36910168]
[1752821612286,0.20318586,120490.0,120480.0,0.36080197]
[1752821614052,0.02059832,120490.0,120480.0,0.36910162]
[1752821614600,0.02059798,120490.0,120480.0,0.36910162]
[1752821614784,0.01229889,120490.0,120480.0,0.36910162]
[1752821615217,0.01229903,120490.0,120480.0,0.42261334]
[1752821615535,0.01229903,120490.0,120480.0,0.36910162]
[1752821616181,0.02059785,120490.0,120480.0,0.36910162]
[1752821617023,0.02889708,120490.0,120480.0,0.36910162]
[1752821617239,0.02059785,120490.0,120480.0,0.36910162]
[1752821617473,0.02889694,120490.0,120480.0,0.36910162]
[1752821617731,0.03719617,120490.0,120480.0,0.36910162]
[1752821617953,0.0371961,120490.0,120480.0,0.36910162]
[1752821618382,0.02889694,120490.0,120480.0,0.36910162]
[1752821618712,0.02059785,120490.0,120480.0,0.36910162]
[1752821619155,0.03719624,120490.0,120480.0,0.36910162]
[1752821620303,0.02889694,120490.0,120480.0,0.36910162]
[1752821620515,0.03719624,120490.0,120480.0,0.36910162]
[1752821620936,0.04549561,120490.0,120480.0,0.36910162]
[1752821621134,0.2114851,120490.0,120480.0,0.23958162]
[1752821621344,0.2114851,120490.0,120480.0,0.36910162]
[1752821621877,0.03719679,120490.0,120480.0,0.36910162]
[1752821622079,0.20318566,120490.0,120480.0,0.36910162]
[1752821623172,0.57518742,120490.0,120480.0,0.36910162]
[1752821623585,0.58348686,120490.0,120480.0,0.36910162]
[1752821624109,0.40919862,120490.0,120480.0,0.36080197]
[1752821624316,0.40089918,120490.0,120480.0,0.36910168]
[1752821624507,0.39259988,120490.0,120480.0,0.36910168]
[1752821624633,0.40089911,120490.0,120480.0,0.37740133]
[1752821625012,0.02889735,120490.0,120480.0,0.37740133]
[1752821625158,0.40089911,120490.0,120480.0,0.37740133]
[1752821625373,0.39259988,120490.0,120480.0,0.37740133]
[1752821625719,0.39259988,120490.0,120480.0,0.24788133]
[1752821625892,0.39259988,120490.0,120480.0,0.37740133]
[1752821626097,0.02059812,120490.0,120480.0,0.37740133]
[1752821626308,0.40089863,120490.0,120480.0,0.37740133]
[1752821626857,0.39259954,120490.0,120480.0,0.37740133]
[1752821627849,0.40089863,120490.0,120480.0,0.37740133]
[1752821628469,0.40919786,120490.0,120480.0,0.37740133]
[1752821628660,0.40919779,120490.0,120480.0,0.37740133]
[1752821628827,0.41749709,120490.0,120480.0,0.37740133]
[1752821629206,0.40919779,120490.0,120480.0,0.24788133]
[1752821629367,0.58348651,120490.0,120480.0,0.24788133]
[1752821629574,0.4174975,120490.0,120480.0,0.24788133]
[1752821629938,0.38430072,120490.0,120480.0,0.37736133]
[1752821630137,0.39259981,120490.0,120480.0,0.37736133]
[1752821630469,0.38430072,120490.0,120480.0,0.37736133]
[1752821632746,0.39259988,120490.0,120480.0,0.37736133]
[1752821633167,0.40089918,120490.0,120480.0,0.37736133]
[1752821633462,0.39259988,120490.0,120480.0,0.37736133]
[1752821633694,0.40089918,120490.0,120480.0,0.37736133]
[1752821634054,0.20318573,120490.0,120480.0,0.37736133]
[1752821634271,0.40919862,120490.0,120480.0,0.37736133]
[1752821634469,0.02889742,120490.0,120480.0,0.37736133]
[1752821635064,0.40089918,120490.0,120480.0,0.37736133]
[1752821635412,0.40089911,120490.0,120480.0,0.37736133]
[1752821635765,0.39259988,120490.0,120480.0,0.37736133]
[1752821636168,0.57518728,120490.0,120480.0,0.19474197]
[1752821636345,0.58348665,120490.0,120480.0,0.23884168]
[1752821636550,0.71296665,120490.0,120480.0,0.23884168]
[1752821636795,0.70466769,120490.0,120480.0,0.22224219]
[1752821637003,0.70466769,120490.0,120480.0,0.23884168]
[1752821637209,0.69636853,120490.0,120480.0,0.23054197]
[1752821638049,0.69636853,120490.0,120480.0,0.23884168]
[1752821638279,0.56688853,120490.0,120480.0,0.0396397]
[1752821638496,0.5585893,120490.0,120480.0,0.0038397]
[1752821638905,0.7147693,120490.0,120480.0,0.0038397]
[1752821639542,1.08677106,120490.0,120480.0,0.0038397]
[1752821639746,1.17228134,120490.0,120480.0,0.0038397]
[1752821639960,0.18264791,120450.0,120440.0,0.0315]
[1752821640191,1.05613143,120450.0,120440.0,8.289e-05]
[1752821640614,0.68412967,120450.0,120440.0,8.289e-05]
[1752821641048,0.64307313,120450.0,120440.0,8.289e-05]
[1752821641467,0.64307313,120450.0,120440.0,0.00308289]
[1752821641689,0.64307313,120450.0,120440.0,8.289e-05]
[1752821641905,0.01660349,120450.0,120440.0,0.18274596]
[1752821642127,0.16468775,120450.0,120440.0,0.21745596]
[1752821642334,0.66167697,120450.0,120440.0,0.27041725]
[1752821642538,0.66367697,120450.0,120440.0,0.27041725]
[1752821642741,0.004,120450.0,120440.0,0.22774836]
[1752821642956,0.004,120450.0,120440.0,0.31325864]
[1752821643202,0.004,120450.0,120440.0,0.44273864]
[1752821644418,0.02060335,120450.0,120440.0,0.44273864]
[1752821644875,0.01230157,120450.0,120440.0,0.44273864]
[1752821645022,0.002,120450.0,120440.0,0.44273864]
[1752821645245,0.01030157,120450.0,120440.0,0.44373864]
[1752821645806,0.002,120450.0,120440.0,0.44373864]
[1752821646018,0.01030157,120450.0,120440.0,0.44373864]
[1752821646232,0.002,120450.0,120440.0,0.31425864]
[1752821646436,0.002,120450.0,120440.0,0.44373864]
[1752821646949,0.01030157,120450.0,120440.0,0.44373864]
[1752821647153,0.002,120450.0,120440.0,0.44373864]
[1752821647705,0.53848231,120460.0,120450.0,0.22214997]
[1752821647923,0.53848231,120460.0,120450.0,0.22714997]
[1752821648133,0.37245179,120460.0,120450.0,0.23545168]
[1752821648341,0.37245179,120460.0,120450.0,0.22714997]
[1752821648525,0.36415028,120460.0,120450.0,0.22714997]
[1752821648692,0.36415028,120460.0,120450.0,0.23545168]
[1752821648907,0.34854747,120460.0,120450.0,0.23545168]
[1752821649115,0.52287905,120460.0,120450.0,0.19595011]
[1752821649337,0.51457803,120460.0,120450.0,0.31513833]
[1752821649562,0.51457803,120460.0,120450.0,0.32344039]
[1752821649981,0.51557803,120460.0,120450.0,0.32344039]
[1752821650413,0.51557803,120460.0,120450.0,0.33174238]
[1752821650730,0.49534464,120460.0,120450.0,0.37234381]
[1752821650924,0.17633158,120460.0,120450.0,0.37234381]
[1752821651134,0.52387947,120460.0,120450.0,0.37234381]
[1752821651296,0.53218098,120460.0,120450.0,0.37234381]
[1752821652347,0.53218098,120460.0,120450.0,0.35574018]
[1752821652552,0.52387975,120460.0,120450.0,0.33954018]
[1752821652750,0.52387975,120460.0,120450.0,0.3478421]
[1752821652959,0.52387975,120460.0,120450.0,0.3637421]
[1752821653166,0.52387975,120460.0,120450.0,0.37204395]
[1752821653411,0.52387975,120460.0,120450.0,0.24455395]
[1752821653930,0.52387975,120460.0,120450.0,0.21134613]
[1752821654348,0.50727694,120460.0,120450.0,0.21134613]
[1752821654501,0.49897543,120460.0,120450.0,0.203044]
[1752821654905,0.49897543,120460.0,120450.0,0.037]
[1752821655135,0.49897543,120460.0,120450.0,0.21134606]
[1752821656566,0.49897543,120460.0,120450.0,0.2113462]
[1752821656769,0.49897543,120460.0,120450.0,0.037]
[1752821656994,0.49897543,120460.0,120450.0,0.2113462]
[1752821657184,0.49897543,120460.0,120450.0,0.037]
[1752821657330,0.49897543,120460.0,120450.0,0.03501]
[1752821657759,0.49801543,120460.0,120450.0,0.03501]
[1752821657964,0.49801543,120460.0,120450.0,0.201054]
[1752821658168,0.49801543,120460.0,120450.0,0.21765819]
[1752821658499,0.49801543,120460.0,120450.0,0.21980819]
[1752821659028,0.5146181,120460.0,120450.0,0.22811018]
[1752821659235,0.49463028,120460.0,120450.0,0.23641203]
[1752821659438,0.49463028,120460.0,120450.0,0.24471381]
[1752821659648,0.66066049,120460.0,120450.0,0.23641203]
[1752821660311,0.66066049,120460.0,120450.0,0.22811018]
[1752821660711,0.65235947,120460.0,120450.0,0.22811018]
[1752821661138,0.65235947,120460.0,120450.0,0.21980819]
[1752821661310,0.32141425,120460.0,120450.0,0.22811018]
[1752821661540,0.65235947,120460.0,120450.0,0.23641203]
[1752821662549,0.48632926,120460.0,120450.0,0.24471381]
[1752821662796,0.65235947,120460.0,120450.0,0.24471381]
[1752821663018,0.65235947,120460.0,120450.0,0.22811018]
[1752821663235,0.64405824,120460.0,120450.0,0.22811018]
[1752821663663,0.64405824,120460.0,120450.0,0.24471395]
[1752821663910,0.50631694,120460.0,120450.0,0.03716]
[1752821664170,0.63575694,120460.0,120450.0,0.03716]
[1752821664906,0.63575694,120460.0,120450.0,0.1666]
[1752821665115,0.63575694,120460.0,120450.0,0.12944]
[1752821665340,0.63575694,120460.0,120450.0,0.14494]
[1752821665558,0.63575694,120460.0,120450.0,0.14818]
[1752821665784,0.63575694,120460.0,120450.0,0.314224]
[1752821666014,0.63575694,120460.0,120450.0,0.329924]
[1752821666240,0.63575694,120460.0,120450.0,0.3382262]
[1752821666474,0.63575694,120460.0,120450.0,0.34652826]
[1752821666938,0.63575694,120460.0,120450.0,0.21708826]
[1752821667420,0.63575694,120460.0,120450.0,0.21923826]
[1752821667638,0.00934137,120460.0,120450.0,0.29836552]
[1752821667861,0.34028631,120460.0,120450.0,0.42780552]
[1752821668150,0.34028617,120460.0,120450.0,0.42780552]
[1752821668374,0.00934089,120460.0,120450.0,0.36528189]
[1752821668618,0.34028611,120460.0,120450.0,0.36528189]
[1752821669089,0.3568885,120460.0,120450.0,0.36528189]
[1752821669349,0.3651898,120460.0,120450.0,0.23584196]
[1752821669579,0.3651898,120460.0,120450.0,0.37358367]
[1752821669821,0.36518973,120460.0,120450.0,0.37358367]
[1752821670300,0.37349117,120460.0,120450.0,0.37358367]
[1752821670539,0.36518973,120460.0,120450.0,0.37358367]
[1752821671254,0.53952138,120460.0,120450.0,0.36528196]
[1752821671669,0.539522,120460.0,120450.0,0.36528196]
[1752821671876,0.51461838,120460.0,120450.0,0.332034]
[1752821672082,0.51461838,120460.0,120450.0,0.21923833]
[1752821672285,0.17434613,120450.0,120440.0,0.21768617]
[1752821672423,0.51359292,120450.0,120440.0,0.34708617]
[1752821672609,0.50529135,120450.0,120440.0,0.34708617]
[1752821672810,0.49698922,120450.0,120440.0,0.03502289]
[1752821673026,0.49698922,120450.0,120440.0,0.12948289]
[1752821673428,0.49698922,120450.0,120440.0,0.14912289]
[1752821674049,0.49698922,120450.0,120440.0,0.00332289]
[1752821674271,0.62638922,120450.0,120440.0,8.289e-05]
[1752821674754,0.62638922,120450.0,120440.0,0.00108289]
[1752821675281,0.65308922,120450.0,120440.0,0.00108289]
[1752821675524,0.73600116,120450.0,120440.0,8.289e-05]
[1752821675727,0.73700116,120450.0,120440.0,8.289e-05]
[1752821675985,0.93854638,120450.0,120440.0,8.289e-05]
[1752821676151,1.06594638,120450.0,120440.0,8.289e-05]
[1752821676354,1.06794638,120450.0,120440.0,8.289e-05]
[1752821676759,1.06994638,120450.0,120440.0,8.289e-05]
[1752821677141,1.15545666,120450.0,120440.0,8.289e-05]
[1752821683089,1.21999751,120450.0,120440.0,8.289e-05]
[1752821683291,1.24493351,120450.0,120440.0,8.289e-05]
[1752821684575,1.16298157,120450.0,120440.0,8.289e-05]
[1752821684801,1.16098157,120450.0,120440.0,8.289e-05]
[1752821685426,1.13804557,120450.0,120440.0,8.289e-05]
[1752821685843,1.47804557,120450.0,120440.0,8.289e-05]
[1752821685985,1.52804557,120450.0,120440.0,8.289e-05]
[1752821686202,1.55298157,120450.0,120440.0,8.289e-05]
[1752821686403,1.63874119,120450.0,120440.0,8.289e-05]
[1752821688059,1.68746297,120450.0,120440.0,8.289e-05]
[1752821690006,1.55810297,120450.0,120440.0,8.289e-05]
[1752821690178,1.68746297,120450.0,120440.0,8.289e-05]
[1752821693292,6.55810297,120450.0,120440.0,8.289e-05]
[1752821693491,6.71693045,120450.0,120440.0,8.289e-05]
[1752821694416,6.71493045,120450.0,120440.0,8.289e-05]
[1752821694824,6.71793045,120450.0,120440.0,8.289e-05]
[1752821695047,0.18269341,120420.0,120410.0,0.0358]
[1752821695252,0.64299863,120420.0,120410.0,0.03588287]
[1752821698167,0.72390688,120420.0,120410.0,0.03688287]
[1752821698581,0.72390688,120420.0,120410.0,0.03368287]
[1752821698763,0.73224483,120420.0,120410.0,0.00108287]
[1752821701047,0.73224483,120420.0,120410.0,0.01728287]
[1752821702224,0.75663065,120420.0,120410.0,0.01728287]
[1752821702464,0.6757224,120420.0,120410.0,0.01728287]
[1752821702678,0.6757224,120420.0,120410.0,0.03318287]
[1752821703832,0.80995446,120420.0,120410.0,0.01728287]
[1752821704690,0.68059446,120420.0,120410.0,0.01728287]
[1752821704891,0.89567408,120420.0,120410.0,0.00108287]
[1752821706270,0.89567408,120420.0,120410.0,0.01698287]
[1752821706918,0.80991446,120420.0,120410.0,0.01698287]
[1752821707451,0.76119268,120420.0,120410.0,0.03208287]
[1752821707650,0.76119268,120420.0,120410.0,0.03528287]
[1752821708074,0.63187268,120420.0,120410.0,0.03528287]
[1752821708278,0.76119268,120420.0,120410.0,0.03528287]
[1752821708487,0.63187268,120420.0,120410.0,0.03528287]
[1752821708746,0.76119268,120420.0,120410.0,0.03528287]
[1752821708961,0.76119268,120420.0,120410.0,0.03729287]
[1752821709407,0.5463624,120420.0,120410.0,0.03729287]
[1752821709593,0.5463624,120420.0,120410.0,0.23286812]
[1752821709594,0.52197658,120420.0,120410.0,0.23286812]
[1752821709821,0.49351493,120420.0,120410.0,0.23661088]
[1752821710165,0.66790448,120420.0,120410.0,0.23661088]
[1752821710563,0.67620874,120420.0,120410.0,0.23661102]
[1752821710791,0.67620874,120420.0,120410.0,0.24491556]
[1752821711038,0.50181912,120420.0,120410.0,0.24491508]
[1752821711756,0.49351493,120420.0,120410.0,0.24491508]
[1752821711992,0.4852108,120420.0,120410.0,0.24491508]
[1752821712238,0.47690688,120420.0,120410.0,0.24491508]
[1752821712452,0.01660625,120430.0,120420.0,0.22249732]
[1752821712672,0.35585312,120440.0,120430.0,0.19098139]
[1752821712857,0.49343594,120440.0,120430.0,0.20129469]
[1752821713106,0.5385166,120440.0,120430.0,0.2272916]
[1752821713325,0.65119145,120440.0,120430.0,0.21898851]
[1752821713533,0.65119145,120440.0,120430.0,0.22729188]
[1752821713964,0.6428887,120440.0,120430.0,0.22729188]
[1752821714397,0.6438887,120440.0,120430.0,0.23559511]
[1752821714815,0.31294348,120440.0,120430.0,0.23559511]
[1752821715021,0.6438887,120440.0,120430.0,0.23559511]
[1752821715234,0.6438887,120440.0,120430.0,0.22729188]